Cogmind - Beta 16.1 @@@ ROGUE MODE // 2026.03.26 @ 03:24:24 Player: FL-IST Result: Destroyed by G-73 Enforcer with Heavy Laser Performance ------------- Evolutions (8) 4000 Regions Visited (25) 5000 Robots Destroyed (409) 2045 Value Destroyed (13831) 13831 Prototype IDs (54) 1080 Alien Tech Used (0) 0 Bonus (5306) 5306 TOTAL SCORE: 31262 Bonus ------- Triggered Max Security 1000 High Alert Combat Kills 1003 Follower Combat Kills 2518 Network Hubs Disabled 200 Aligned with FarCom 300 Met Imprinter 300 Built Enhanced Grunts 300 Met R17 at Cetus 500 Met R17 at Research 2000 Friendly Fire -2815 Cogmind --------- Core Integrity 0/1450 Matter 136/300 Energy 49/100 System Corruption 17% Temperature Cool (18) Movement Core (50) Location -2/Quarantine Parts ------- > --- POWER (3) -------- (None) > --- PROPULSION (6) --- (None) > --- UTILITY (11) ----- (None) > --- WEAPON (3) ------- (None) > --- INVENTORY (5) ---- Plasma Cutter Sigix Broadsword Peak State ------------ > --- POWER ------------ Particle Reactor Light Particle Reactor Quantum Reactor > --- PROPULSION ------- Armored Heavy Treads Armored Heavy Treads Biometal Heavy Treads > --- UTILITY ---------- Improved Cryofiber Web Advanced Heat Sink Advanced Heat Sink Huge Storage Unit Advanced Targeting Computer Core Analyzer Core Analyzer Transmission Jammer Layered Medium Armor Plating Centrium Light Armor Plating Advanced Force Field > --- WEAPON ----------- Enhanced Quantum Rifle Nova Cannon Enhanced Nova Cannon > --- INVENTORY -------- Light Antimatter Reactor Light Particle Reactor Light Particle Reactor Armored Heavy Treads Armored Heavy Treads Armored Heavy Treads Armored Heavy Treads Armored Heavy Treads Armored Heavy Treads Improved Cryofiber Web Advanced Heat Sink Advanced Component Analysis Suite Phasing AFG Precision Phase Gun Precision Phase Gun Precision Phase Gun Precision Phase Gun Fusion Bomb Launcher Plasma Cutter [Rating: 173] Favorites ----------- Power Cooled Ion Engine Engine Cooled Ion Engine Power Core Light Nuclear Core Reactor Antimatter Reactor Propulsion Advanced Treads Treads Advanced Treads Leg Myomer Leg Wheel Centrium Wheel Hover Unit Aerolev Unit Flight Unit Xenon Bombardment Thruster Utility Large Storage Unit Device Improved Cooling System Storage Large Storage Unit Processor Improved Targeting Computer Hackware Advanced Hacking Suite Protection Medium Armor Plating Weapon Heavy Particle Cannon Energy Gun Precision Phase Gun Energy Cannon Heavy Particle Cannon Ballistic Cannon Hardcell Cannon Launcher Rocket Launcher Special Weapon Plasma Cutter Slashing Weapon Greatsword Build | -11 -10 -10 -9 -9 -9 -8 -8 -8 -7 -7 -7 -7 -6 -6 -6 -6 -6 -6 -6 -6 -5 -4 -3 -2 -2 ------- Run | Yrd Mat Min Mat Min Exi Min Mat Sto Fac Low Low Zio Pro Fac Was Fac Ext Cet Arc Hub Fac Fac Res Res Qua Slots Evolved 16 | . . . 2 . . . 2 . 2 . . . . 2 . . . . . . 2 2 2 2 . Power 2 | . . . . . . . . . . . . . . . . . . . . . . 1 . 1 . Propulsion 4 | . . . . . . . 1 . . . . . . . . . . . . . 1 . 2 . . Utility 9 | . . . 2 . . . . . 2 . . . . 2 . . . . . . 1 1 . 1 . Weapon 1 | . . . . . . . 1 . . . . . . . . . . . . . . . . . . Parts Attached 197 | 7 12 1 16 1 . 1 13 11 8 5 . 8 1 8 3 2 10 6 3 . 5 11 44 19 2 Power 31 | 1 2 . 3 . . 1 1 5 . . . 1 . . 1 . . 1 1 . . 1 8 5 . Engine 11 | 1 1 . 2 . . . 1 4 . . . 1 . . . . . 1 . . . . . . . Core 4 | . 1 . 1 . . 1 . 1 . . . . . . . . . . . . . . . . . Reactor 16 | . . . . . . . . . . . . . . . 1 . . . 1 . . 1 8 5 . Propulsion 43 | 2 2 . 6 . . . 5 1 1 . . . . . 2 . 1 . . . 2 3 14 2 2 Treads 30 | 2 2 . 6 . . . 4 1 1 . . . . . 2 . 1 . . . 2 . 7 2 . Leg 3 | . . . . . . . . . . . . . . . . . . . . . . 3 . . . Wheel 1 | . . . . . . . . . . . . . . . . . . . . . . . 1 . . Hover 1 | . . . . . . . 1 . . . . . . . . . . . . . . . . . . Flight 8 | . . . . . . . . . . . . . . . . . . . . . . . 6 . 2 Utility 85 | 2 4 1 5 1 . . 3 1 6 4 . 7 1 7 . . 7 3 2 . 2 6 17 6 . Device 44 | 1 3 1 1 . . . 1 . 3 2 . 2 1 4 . . 4 1 2 . 2 6 7 3 . Storage 3 | 1 1 . . . . . . . . . . . . . . . . . . . . . 1 . . Processor 17 | . . . 1 . . . 1 . 2 1 . 5 . . . . 1 . . . . . 5 1 . Hackware 4 | . . . . . . . . . . . . . . 3 . . . . . . . . 1 . . Protection 17 | . . . 3 1 . . 1 1 1 1 . . . . . . 2 2 . . . . 3 2 . Artifact . | . . . . . . . . . . . . . . . . . . . . . . . . . . Weapon 38 | 2 4 . 2 . . . 4 4 1 1 . . . 1 . 2 2 2 . . 1 1 5 6 . Energy Gun 11 | 2 1 . . . . . . 1 . . . . . . . . . 1 . . . . 3 3 . Energy Cannon 20 | . 3 . 1 . . . 4 2 1 1 . . . 1 . 1 1 . . . 1 1 1 2 . Ballistic Gun . | . . . . . . . . . . . . . . . . . . . . . . . . . . Ballistic Cannon 1 | . . . . . . . . . . . . . . . . . . . . . . . 1 . . Launcher 4 | . . . 1 . . . . 1 . . . . . . . 1 . . . . . . . 1 . Special Weapon 1 | . . . . . . . . . . . . . . . . . 1 . . . . . . . . Impact Weapon . | . . . . . . . . . . . . . . . . . . . . . . . . . . Slashing Weapon 1 | . . . . . . . . . . . . . . . . . . 1 . . . . . . . Piercing Weapon . | . . . . . . . . . . . . . . . . . . . . . . . . . . Special Melee Weapon . | . . . . . . . . . . . . . . . . . . . . . . . . . . Unidentified Prototypes 20 | . 1 . . . . . 1 4 . . . 6 . 1 . . . 3 . . . 2 2 . . Corrupted Parts 1 | . . . . . . . . . . . . . . . . . . . 1 . . . . . . System Corruption 10 | . . . . . . . . . . . . . . . . . . . 10 . . . . . . Parts Lost 38 | . 2 . 1 1 . 2 . 3 . . 1 2 . . . . 4 2 . 1 1 6 4 5 3 Power 5 | . 1 . . . . . . 1 . . . . . . . . . 1 . . . 1 . 1 . Propulsion 4 | . . . . . . . . . . . . . . . . . . . . . 1 1 . . 2 Utility 23 | . . . 1 1 . 2 . 1 . . . 2 . . . . 4 . . 1 . 4 4 3 . Weapon 6 | . 1 . . . . . . 1 . . 1 . . . . . . 1 . . . . . 1 1 Highest Loss Streak 3 | . 1 . 1 1 . 1 . 3 . . 1 2 . . . . 2 2 . 1 1 3 2 2 3 To Critical Strikes 2 | . . . . . . . . . . . . . . . . . . 2 . . . . . . . Average Backups 13 | 3 11 15 14 14 14 12 14 14 14 14 14 14 15 12 13 12 11 11 12 12 13 13 8 17 2 Power . | . 1 1 . . . . . . 1 1 1 . . . . . . . . 1 1 . . 1 . Propulsion 2 | . 4 4 4 4 4 4 3 3 2 2 2 2 2 2 2 2 2 3 2 2 1 . 2 6 . Utility 5 | . 3 5 5 5 5 2 5 5 5 7 8 9 10 5 6 6 5 4 6 6 6 8 2 4 . Weapon 3 | . 2 5 5 5 5 6 5 4 3 3 2 2 2 3 4 3 3 3 2 2 2 2 1 4 1 Tool/Special . | . . . . . . . . . . . . . . . . . . . . . . . . . . Unused Backups 43 | . 7 . 4 . . . 1 3 . . . . 1 2 2 . . . . . . 4 8 3 8 Power 1 | . 1 . . . . . . . . . . . . . . . . . . . . . . . . Propulsion 19 | . 3 . 1 . . . 1 1 . . . . . . 2 . . . . . . . 5 . 6 Utility 11 | . 2 . . . . . . . . . . . 1 2 . . . . . . . 4 1 1 . Weapon 12 | . 1 . 3 . . . . 2 . . . . . . . . . . . . . . 2 2 2 Tool/Special . | . . . . . . . . . . . . . . . . . . . . . . . . . . Average Slot Usage (%) 93 | . 99 100 99 99 100 97 99 99 98 100 99 99 100 99 95 93 91 92 92 93 86 81 67 82 1 Engine 3 | . 7 . . 11 11 3 6 8 7 7 7 7 7 6 2 . . 5 2 . . . . . . Core 1 | . 6 14 10 . . 7 2 . . . . . . . . . . . . . . . . . . Reactor 2 | . . . . . . . . . . . . . . . 3 6 6 . 3 6 5 9 7 12 . Treads 19 | . 28 28 22 21 22 22 26 27 23 23 23 23 23 20 15 13 13 13 13 13 10 6 11 13 . Device 17 | . 14 14 14 11 11 11 9 9 13 13 15 14 15 24 26 26 28 26 28 26 27 28 12 20 . Storage 7 | . 14 14 11 11 11 11 9 9 7 7 7 7 7 6 6 6 6 6 6 6 5 4 2 4 . Processor 11 | . . . 11 11 11 11 9 9 14 17 15 22 23 14 13 13 9 13 13 13 11 8 12 13 . Protection 5 | . . . 7 11 11 8 8 9 7 6 7 . . 5 6 6 5 6 3 6 5 4 2 5 . Energy Gun 1 | . 13 . . . . . . . . . . . . . . . . 1 6 6 4 . 11 3 . Energy Cannon 18 | . 14 28 21 18 22 21 25 26 23 23 22 23 23 20 20 19 19 17 13 13 12 11 . 8 . Peak Build Rating 173 | 7 17 15 21 19 20 22 34 35 45 49 51 58 58 67 77 82 88 90 94 94 106 112 150 173 11 Average Rating 58 | 6 12 15 20 18 19 20 28 33 42 44 44 47 51 62 72 78 80 84 91 93 102 102 103 165 3 On Entrance 54 | . 7 17 15 19 19 20 20 34 34 45 45 44 51 51 66 77 80 82 90 94 90 97 3 150 167 Avg Prop Armor Cover (%) 1 | . . . . . . . . . . . . . . . . . . . . . . 3 1 . . Naked Turns 143 | . . . . . . . . . . . . . . . . . . . . . . 36 5 . 102 Heaviest Build 215 | 11 34 34 43 39 39 41 55 55 59 60 60 56 49 65 73 73 74 73 70 70 73 107 149 215 12 Greatest Support 195 | 40 40 40 40 40 40 40 66 66 72 72 72 72 72 72 92 92 100 100 100 100 140 100 194 195 6 Greatest Overweight (x) 3 | . . . 1 . . 1 . . . . . . . . . . . . . . . 1 1 1 3 Average Overweight (x) . | . . . . . . . . . . . . . . . . . . . . . . . . . . Largest Inventory Capacity 25 | 8 15 15 15 15 15 15 15 15 15 15 15 15 15 15 15 15 15 15 15 15 15 15 25 25 5 Average Capacity 15 | 7 13 15 15 15 15 15 15 15 15 15 15 15 15 15 15 15 15 15 15 15 15 14 15 25 5 Most Carried 25 | 4 15 15 15 15 15 15 15 15 15 15 15 15 15 15 15 15 15 15 15 14 15 15 23 25 5 Average Carried 14 | 3 11 15 14 14 14 12 14 14 14 14 14 14 15 12 13 14 13 14 14 13 14 13 9 23 2 Final Capacity 25 | 8 15 15 15 15 15 15 15 15 15 15 15 15 15 15 15 15 15 15 15 15 15 5 25 25 5 Final Carried 22 | 4 15 15 15 14 15 12 15 14 15 15 14 15 15 13 15 14 15 15 14 14 15 5 22 22 3 Class Distribution -------------------- 17% | Gunner 16% | Skirmisher 15% | Scavenger-Mutant 11% | Mutant 11% | Tank 10% | Scavenger-Gunner 9% | Scavenger-Tank 3% | Scavenger-Skirmisher Dominant Class ---------------- Mutant | -10/Materials Mutant | -10/Mines Scavenger-Mutant | -9/Materials Scavenger-Mutant | -9/Mines Scavenger-Mutant | -9/Exiles Scavenger-Mutant | -8/Mines Skirmisher | -8/Materials Skirmisher | -8/Storage Gunner | -7/Factory Skirmisher | -7/Lower Caves Skirmisher | -7/Lower Caves Gunner | -7/Zion Gunner | -6/Proximity Caves Gunner | -6/Factory Tank | -6/Waste Tank | -6/Factory Scavenger-Tank | -6/Extension Commander-Tank | -6/Cetus Commander-Gunner | -6/Archives Scavenger-Gunner | -6/Hub_04(d) Scavenger-Gunner | -5/Factory Scavenger-Gunner | -4/Factory Scavenger-Gunner | -3/Research Scavenger-Tank | -2/Research Mutant | -2/Quarantine Resources | -11 -10 -10 -9 -9 -9 -8 -8 -8 -7 -7 -7 -7 -6 -6 -6 -6 -6 -6 -6 -6 -5 -4 -3 -2 -2 ----------- Run | Yrd Mat Min Mat Min Exi Min Mat Sto Fac Low Low Zio Pro Fac Was Fac Ext Cet Arc Hub Fac Fac Res Res Qua Matter Collected 3953 | 270 115 10 232 40 . 161 313 277 142 116 39 100 60 129 30 60 150 169 19 40 208 198 721 341 13 Remotely . | . . . . . . . . . . . . . . . . . . . . . . . . . . Salvage Created 17166 | 238 754 251 2062 245 . 491 1243 1376 191 698 286 . 220 183 172 1340 1532 69 70 54 1146 992 804 2749 . Parts 889 | 22 53 19 124 9 . 37 73 73 13 27 8 . 12 12 8 58 63 3 6 2 53 42 28 144 . Haulers Intercepted 21 | . 2 . 4 . . . 4 5 1 . . . . 1 . 2 . . . . . . 2 . . Recyclers Shooed 14 | . . 1 3 1 . . . . . . . . . 1 . 2 2 . . . . 1 . 3 . Parts Field Recycled . | . . . . . . . . . . . . . . . . . . . . . . . . . . Retrieved Matter . | . . . . . . . . . . . . . . . . . . . . . . . . . . Parts Self-Destructed 37 | . . . . . . . . . . 21 6 . 10 . . . . . . . . . . . . Prevented 11 | . . . . . . . . . . 10 . . 1 . . . . . . . . . . . . Parts Restored . | . . . . . . . . . . . . . . . . . . . . . . . . . . Kills | -11 -10 -10 -9 -9 -9 -8 -8 -8 -7 -7 -7 -7 -6 -6 -6 -6 -6 -6 -6 -6 -5 -4 -3 -2 -2 ------- Run | Yrd Mat Min Mat Min Exi Min Mat Sto Fac Low Low Zio Pro Fac Was Fac Ext Cet Arc Hub Fac Fac Res Res Qua Combat Hostiles Destroyed 247 | . 19 . 28 6 . 17 19 17 2 12 3 . 5 2 . 15 20 . . 1 22 18 8 33 . Guns 32 | . 15 . . . . . . . . . . . . . . . . . . . 3 . 7 7 . Cannons 146 | . 4 . 26 6 . 6 15 12 2 10 3 . 2 2 . 9 16 . . 1 7 9 . 16 . AOE 59 | . . . 2 . . 11 4 5 . 2 . . 3 . . 5 1 . . . 9 8 . 9 . Classes Destroyed 23 | 3 5 . 3 1 . 1 . 1 1 2 1 . . . 1 1 1 . . . . . 1 1 . Worker 29 | 1 . 3 9 . . 1 1 . . . . . . . . 2 . . . . 1 2 . 9 . Builder 32 | . . . 2 . . 1 3 . . . . . . . . 2 3 . . 1 3 2 . 15 . Tunneler 16 | 8 . 2 1 . . 3 . . 1 . . . . . . . . . . . 1 . . . . Hauler 21 | . 2 . 4 . . . 4 5 1 . . . . 1 . 2 . . . . . . 2 . . Recycler 20 | 1 . 2 5 1 . 2 2 3 . . . . . . . . 1 . . . . . . 3 . Minesweeper 2 | . . . . . . . . . . 2 . . . . . . . . . . . . . . . Mechanic 1 | . . . . . . . . 1 . . . . . . . . . . . . . . . . . Operator 13 | . 1 . 3 . . . 1 3 . . . . . . . . 1 . 2 . . 1 1 . . Watcher 25 | . 1 . 4 . . . 4 2 . . . . . . . 3 1 1 . . 4 . 2 3 . Swarmer 50 | . 6 . 5 . . 13 8 . . 1 . . 3 . . . . . . . 4 . 2 8 . Grunt 92 | . 13 . 17 2 . 2 2 9 . 8 3 . . . . 6 5 . . 1 11 11 2 . . Brawler 3 | . . . . . . . . . . 1 . . . . . . 1 . . . . . 1 . . Duelist 5 | . . . 1 1 . 1 . . . 1 . . . . . . 1 . . . . . . . . Protector 1 | . . . . . . . . . . . . . . . . 1 . . . . . . . . . Sentry 43 | . . . 5 . . . 7 8 1 1 . . 1 . . 3 9 . . . 2 1 . 5 . Demolisher 1 | . . . . . . . . . . . . . . . . . . . . . . . 1 . . Hunter 12 | . . . . . . 1 2 . . . . . . . . 2 1 . . . . 2 . 4 . Programmer 29 | . . . . . . . . . 1 . . . 1 2 . 3 . . . . 5 4 . 13 . Heavy 2 | . . . . . . . . . . . . . . . . . . . . . . . . 2 . Behemoth 3 | . . . . . . . . . . . . . . . . . 2 . . . . . . 1 . Striker 2 | . . . . . . . . . . . . . . . . . . . . . . . 2 . . Samaritan 4 | . . . . . . . . . . . 3 . 1 . . . . . . . . . . . . Assembled 3 | . . . . 3 . . . . . . . . . . . . . . . . . . . . . Wasp 1 | . . . . . . . . . . . . . . . 1 . . . . . . . . . . Savage 1 | . . . . . . . . . . . . . . . . . 1 . . . . . . . . Butcher 2 | . . . . . . . . . . . . . . . . 2 . . . . . . . . . Martyr 2 | . . . . . . . . . . . . . . . 2 . . . . . . . . . . Best Kill Streak 12 | 3 5 1 6 3 . 7 6 6 1 7 3 . 3 2 . 5 4 1 2 2 11 9 3 12 . Combat Bots Only 9 | . 5 . 4 3 . 4 6 4 1 7 3 . 3 1 . 5 4 . . 1 9 8 3 6 . Max Kills in Single Turn 5 | 1 1 1 4 1 . 3 4 3 1 2 1 . 3 1 1 3 1 1 1 1 3 3 1 5 . Gunslinging . | . . . . . . . . . . . . . . . . . . . . . . . . . . Exploded 3 | . . . 2 . . 2 3 1 . 2 . . 3 . . 3 1 . . . 3 2 . 3 . Melee . | . . . . . . . . . . . . . . . . . . . . . . . . . . Uniques/NPCs Destroyed 1 | . . . . . . . . . . . . . . . . . . 1 . . . . . . . A7 (-6/Cetus) Combat | -11 -10 -10 -9 -9 -9 -8 -8 -8 -7 -7 -7 -7 -6 -6 -6 -6 -6 -6 -6 -6 -5 -4 -3 -2 -2 -------- Run | Yrd Mat Min Mat Min Exi Min Mat Sto Fac Low Low Zio Pro Fac Was Fac Ext Cet Arc Hub Fac Fac Res Res Qua Hostile Shots Fired 1414 | . 57 . 74 8 . 59 59 69 29 31 17 . 27 2 . 46 142 16 . 11 81 180 107 308 91 Missed 433 | . 14 . 19 . . 19 14 18 11 10 4 . 13 2 . 23 58 6 . 3 28 58 20 82 31 Hits 981 | . 43 . 55 8 . 40 45 51 18 21 13 . 14 . . 23 84 10 . 8 53 122 87 226 60 Melee 15 | . . . 2 3 . . . . . . . . . . . . 1 . . . . . 5 . 4 Projectile 966 | . 43 . 53 5 . 40 45 51 18 21 13 . 14 . . 23 83 10 . 8 53 122 82 226 56 AOE 9 | . . . . . . . . . . . . . . . . . 1 . . . 3 . 4 1 . Critical Strikes 29 | . . . 2 1 . 3 1 3 . . . . . . . 1 3 2 . . 1 3 2 6 1 Part Disruptions 2 | . . . . . . . . . . . . . . . . 1 . . . 1 . . . . . Damage Taken 15887 | . 469 . 675 158 . 506 607 824 148 413 206 . 126 . . 332 696 222 . 236 1304 1668 2158 3814 1325 Core 2986 | . 65 . 85 11 . 50 87 108 17 56 14 . 28 . . 33 28 18 . 32 94 322 486 243 1209 Absorbed by Shields 2488 | . . . . . . . . . . . . . . . . 129 252 31 . 83 . 328 169 1496 . Reduced by Siege Mode 305 | . . . . . . . . . . . . . . . . . . . . . 27 26 104 148 . Regen/Repaired (Parts) 918 | . . . . . . . 163 . 19 . . 138 . . 38 98 . 28 11 . 68 319 . 36 . Core Remaining (%) 77 | 100 . 74 . . . 63 . 64 . . . . 83 . . . . . . 86 90 72 62 . . Volleys Fired 851 | 25 67 12 105 14 . 37 57 46 11 29 13 1 9 13 15 49 58 9 15 8 66 52 36 99 5 Largest 3 | 2 2 2 2 2 . 2 3 3 3 3 3 1 3 3 3 3 3 3 3 3 3 3 3 3 1 Hottest 353 | 80 136 136 136 136 . 136 225 225 225 225 225 75 225 185 185 200 200 255 260 260 270 290 301 353 113 Shots Fired 2059 | 50 132 24 209 28 . 74 156 127 27 85 35 1 25 21 45 143 169 14 21 20 166 122 97 263 5 Gun 359 | 50 97 . . . . . . . . . . . . . . . . 1 15 8 34 . 89 65 . Cannon 1637 | . 35 24 207 28 . 64 151 119 27 85 35 1 25 21 45 141 169 9 6 12 124 105 8 191 5 Launcher 63 | . . . 2 . . 10 5 8 . . . . . . . 2 . 4 . . 8 17 . 7 . Special . | . . . . . . . . . . . . . . . . . . . . . . . . . . Kinetic . | . . . . . . . . . . . . . . . . . . . . . . . . . . Thermal 1989 | 50 132 24 207 28 . 64 151 119 27 84 34 1 24 21 45 141 168 10 21 20 158 102 97 256 5 Explosive 63 | . . . 2 . . 10 5 8 . . . . . . . 2 . 4 . . 8 17 . 7 . Electromagnetic 7 | . . . . . . . . . . 1 1 . 1 . . . 1 . . . . 3 . . . Robot Hit Streak 32 | 5 13 3 19 10 . 12 11 13 11 11 11 . 16 5 16 6 23 8 7 8 21 16 32 23 . Robot Miss Streak 6 | 2 5 5 4 2 . 3 5 2 1 3 2 . 2 1 1 3 2 2 6 2 3 3 1 3 . Penetration Max . | . . . . . . . . . . . . . . . . . . . . . . . . . . Secondary Targets 2 | . . . . . . . . . . . . . . . . . . . . . . . 2 . . Max Gunslinging Chain 1 | . . . . . . . . . . . . . . . . . . . . . . . 1 . . Shots Hit Robots 1198 | 30 86 10 135 16 . 42 82 66 14 41 24 . 14 8 38 72 105 13 13 9 76 57 79 168 . Core Hits 638 | 11 37 7 59 8 . 30 39 48 5 25 12 . 10 4 8 49 47 9 7 2 47 52 32 89 1 Critical Kills 10 | . . . . . . . 1 . . . . . . 1 . 2 1 . . . 2 1 . 2 . Critical Parts Destroyed . | . . . . . . . . . . . . . . . . . . . . . . . . . . Critical Strikes 23 | . 3 . . . . . 1 . . . . . . 1 . 2 1 1 . . 2 1 6 5 . Burn 12 | . 3 . . . . . . . . . . . . . . . . . . . . . 6 3 . Meltdown 10 | . . . . . . . 1 . . . . . . 1 . 2 1 . . . 2 1 . 2 . Sever 1 | . . . . . . . . . . . . . . . . . . 1 . . . . . . . Melee Attacks 3 | . . . . . . . . . . . . . . . . . . 3 . . . . . . . Impact . | . . . . . . . . . . . . . . . . . . . . . . . . . . Slashing 3 | . . . . . . . . . . . . . . . . . . 3 . . . . . . . Piercing . | . . . . . . . . . . . . . . . . . . . . . . . . . . Sneak Attacks 3 | . . . . . . . . . . . . . . . . . . 3 . . . . . . . Combat Hostiles . | . . . . . . . . . . . . . . . . . . . . . . . . . . Follow-up Attacks . | . . . . . . . . . . . . . . . . . . . . . . . . . . Damage Inflicted 42699 | 314 1230 204 3228 331 . 1704 2128 2417 386 1171 600 . 441 233 1176 2805 3689 879 462 294 3806 3737 2313 9143 8 Guns 5754 | 314 898 . . . . . . . . . . . . . . . . 60 362 121 540 . 2106 1353 . Cannons 26448 | . 332 204 2901 331 . 828 1854 1821 386 1075 600 . 335 233 1176 1968 3464 188 100 161 1641 1515 202 5133 . Explosions 10076 | . . . 327 . . 876 274 593 . 96 . . 106 . . 823 225 399 . . 1604 2183 . 2570 . Melee 232 | . . . . . . . . . . . . . . . . . . 232 . . . . . . . Ramming 189 | . . . . . . . . 3 . . . . . . . 14 . . . 12 21 39 5 87 8 Kinetic . | . . . . . . . . . . . . . . . . . . . . . . . . . . Thermal 32660 | 314 1230 204 2901 331 . 828 1854 1821 386 1075 600 . 331 233 1176 2215 3460 248 462 282 2417 1498 2308 6486 . Explosive 8892 | . . . 327 . . 876 274 593 . . . . . . . 439 . 399 . . 1368 2046 . 2570 . Electromagnetic 726 | . . . . . . . . . . 96 . . 110 . . 137 229 . . . . 154 . . . Impact . | . . . . . . . . . . . . . . . . . . . . . . . . . . Slashing 232 | . . . . . . . . . . . . . . . . . . 232 . . . . . . . Piercing . | . . . . . . . . . . . . . . . . . . . . . . . . . . Highest Corruption 17 | . . . . . . . 1 1 3 2 1 1 2 . . . 2 2 12 3 6 6 . 14 17 Average Corruption 2 | . . . . . . . 1 1 1 1 1 1 2 . . . 2 2 3 2 5 4 . 6 14 Corruption Purged 17 | . . . . . . . . . 3 2 . . . . . . . . 12 . . . . . . Corruption Blocked . | . . . . . . . . . . . . . . . . . . . . . . . . . . Effects 112 | . . . . . . . 14 10 2 4 1 1 2 . . . 3 10 3 . 9 15 . 33 5 Message Errors 36 | . . . . . . . 5 2 2 2 . 1 1 . . . 1 4 1 . 2 6 . 6 3 Matter Fused 29 | . . . . . . . 2 4 . 1 1 . 1 . . . . 1 1 . 4 4 . 9 1 Heat Flow Errors 15 | . . . . . . . 2 2 . 1 . . . . . . 1 2 . . 2 2 . 3 . Energy Discharges 16 | . . . . . . . 3 1 . . . . . . . . 1 1 . . 1 1 . 8 . Parts Rejected 1 | . . . . . . . . . . . . . . . . . . . . . . 1 . . . Data Loss (minor) 4 | . . . . . . . . . . . . . . . . . . 1 1 . . . . 1 1 Data Loss (major) 1 | . . . . . . . . . . . . . . . . . . . . . . 1 . . . Misfires 4 | . . . . . . . 2 . . . . . . . . . . . . . . . . 2 . Alerts 1 | . . . . . . . . 1 . . . . . . . . . . . . . . . . . Weapon Failures 5 | . . . . . . . . . . . . . . . . . . 1 . . . . . 4 . Overload Shots 2 | . . . . . . . . . . . . . . . . . 1 1 . . . . . . . Overflow Damage 1228 | . . . 103 . . 65 80 38 7 39 . . 49 25 . 69 42 57 . 10 93 131 . 420 . Projectiles 679 | . . . 62 . . 12 52 38 7 39 . . 49 25 . 16 42 . . 10 . 111 . 216 . Explosions 464 | . . . 41 . . 53 28 . . . . . . . . 53 . 8 . . 93 20 . 168 . Melee 85 | . . . . . . . . . . . . . . . . . . 49 . . . . . 36 . Knockbacks . | . . . . . . . . . . . . . . . . . . . . . . . . . . Impact . | . . . . . . . . . . . . . . . . . . . . . . . . . . Kinetic . | . . . . . . . . . . . . . . . . . . . . . . . . . . Secondary . | . . . . . . . . . . . . . . . . . . . . . . . . . . Self-Inflicted Damage 189 | . . . . . . 38 16 . . . . . . . . 33 . . . . . 23 1 75 3 Shots 5 | . . . . . . 1 1 . . . . . . . . 1 . . . . . 1 . 1 . Rammed 23 | . . . . . . . . 1 . . . . . . . 2 . . . 1 4 1 7 4 3 Targets Rammed 29 | . . . . . . . . 1 . . . . . . . 2 . . . 2 5 4 7 5 3 Kicked 3 | . . . . . . . . . . . . . . . . . . . . . . 3 . . . Crushed 3 | . . . . . . . . . . . . . . . . . . . . 1 1 . . 1 . Highest Temperature 645 | 216 375 162 333 221 . 284 444 435 195 345 255 . 227 103 313 377 458 178 94 329 328 645 432 453 . Average Temperature 113 | 66 96 56 89 67 . 72 138 124 70 114 109 . 89 50 131 107 139 59 51 133 101 166 170 134 . Received Heat Transfer 3233 | . 213 . 246 30 . 189 90 324 36 135 117 . 30 . . 53 214 . . 21 264 139 162 817 153 Effects 38 | . 3 . . . . . 2 5 . 2 . . . . . 2 6 . . . 1 9 4 4 . Shutdowns 12 | . 1 . . . . . 1 2 . . . . . . . . 2 . . . . 4 . 2 . Energy Bleed 7 | . 1 . . . . . 1 . . 1 . . . . . . 2 . . . 1 . 1 . . Interference 7 | . . . . . . . . 3 . . . . . . . 1 . . . . . 1 2 . . Short Circuit 7 | . . . . . . . . . . . . . . . . 1 2 . . . . 2 1 1 . Damage (minor) 5 | . 1 . . . . . . . . 1 . . . . . . . . . . . 2 . 1 . Siege Activations 17 | . . . . . . . . . . . . . . . . . . . . . 4 3 1 9 . Total Turns 308 | . . . . . . . . . . . . . . . . . . . . . 54 61 25 168 . Longest Duration 39 | . . . . . . . . . . . . . . . . . . . . . 24 33 25 39 . Martial Activations . | . . . . . . . . . . . . . . . . . . . . . . . . . . Shielding Activations . | . . . . . . . . . . . . . . . . . . . . . . . . . . Robots Disrupted 1 | . . . . . . . . . . . . . . . . 1 . . . . . . . . . Combat Hostiles 1 | . . . . . . . . . . . . . . . . 1 . . . . . . . . . Robots Corrupted 1 | . . . . . . . . . . . . . . . . . . . . . . . . 1 . Combat Hostiles . | . . . . . . . . . . . . . . . . . . . . . . . . . . Parts Fried 4 | . . . . . . . . . . 1 . . . . . . . . . . . . . 3 . Impact Corruptions 1 | . . . . . . . . . . . . . . . . . . . . . . . . 1 . Robots Melted 14 | . . . . . . . 1 . . . . . . 1 . 2 3 . . . 3 1 1 2 . Combat Hostiles 10 | . . . . . . . . . . . . . . . . 1 3 . . . 3 1 1 1 . Parts Melted 113 | . 7 . 3 . . 1 8 4 2 3 3 . . . 2 12 18 . 3 . 10 3 8 26 . Heat Transferred 45218 | 700 2949 370 5032 592 . 1480 3071 2627 518 1591 888 . 481 322 1773 2958 4965 284 592 370 2814 1295 3367 6179 . Parts Sabotaged 2 | . . . . . . . . . . . . . . . . . . . . . . . . . 2 Parts Stolen . | . . . . . . . . . . . . . . . . . . . . . . . . . . Parts Stripped . | . . . . . . . . . . . . . . . . . . . . . . . . . . Power Chain Reactions . | . . . . . . . . . . . . . . . . . . . . . . . . . . Latent Energy Used 365 | . . . . . . . . . . 76 49 . 75 . . . 104 . . . . 61 . . . LE Corruption 10 | . . . . . . . . . . 2 1 . 2 . . . 2 . . . . 3 . . . Alert | -11 -10 -10 -9 -9 -9 -8 -8 -8 -7 -7 -7 -7 -6 -6 -6 -6 -6 -6 -6 -6 -5 -4 -3 -2 -2 ------- Run | Yrd Mat Min Mat Min Exi Min Mat Sto Fac Low Low Zio Pro Fac Was Fac Ext Cet Arc Hub Fac Fac Res Res Qua Maximum Alert Level 5 | . . . 1 . . 1 1 1 . . . . . . . 3 2 1 1 1 2 2 1 3 5 Low Security (%) 64 | 100 100 100 51 100 . 89 91 70 100 . . . . 100 100 11 . 24 34 89 39 35 93 56 . Level 1 21 | . . . 48 . . 10 8 29 . . . . . . . 57 47 75 65 10 1 29 6 21 . Level 2 10 | . . . . . . . . . . . . . . . . 7 52 . . . 58 34 . 14 . Level 3 2 | . . . . . . . . . . . . . . . . 23 . . . . . . . 6 . Level 4 . | . . . . . . . . . . . . . . . . . . . . . . . . . . Level 5 . | . . . . . . . . . . . . . . . . . . . . . . . . . . High Security . | . . . . . . . . . . . . . . . . . . . . . . . . . . Max Security . | . . . . . . . . . . . . . . . . . . . . . . . . . 99 Peak Influence 1654 | 10 165 56 381 147 . 248 281 382 158 . . . . 38 3 932 514 302 256 398 635 555 258 981 1654 Initial 533 | . . 14 . 147 . . 40 117 158 . . . . 21 3 . 455 267 91 61 189 303 258 47 533 Average 187 | 1 87 4 213 31 . 130 55 172 34 . . . . 6 . 399 405 234 208 53 357 306 47 277 1603 Influence Increases 11756 | 50 601 96 1125 90 . 532 763 781 95 301 70 . 125 112 1 1593 925 344 225 470 952 725 251 1475 54 Destroy 0b10 Robot/C 5920 | . 380 40 640 60 . 340 380 340 40 260 60 . 100 40 . 660 560 160 80 160 440 360 160 660 . Destroy 0b10 Robot/NC 865 | 50 20 35 140 5 . 35 75 70 10 10 . . 5 5 . 70 40 10 10 30 45 25 25 150 . Destroy Leader 1340 | . 86 10 176 10 . 60 126 124 22 10 10 . 20 22 . 164 54 . . 54 98 80 28 186 . Allied During Kill 1079 | . . 6 22 . . . . . . 6 . . . . . 572 111 126 90 146 . . . . . Successful Hack 194 | . 37 5 9 . . . 11 29 7 . . . . 35 . 8 . . . . 26 . 13 14 . Select Force Hacks 200 | . 60 . 60 . . . 30 . . . . . . . . . . . . 50 . . . . . Disable Machine 720 | . . . 30 15 . 30 75 135 15 . . . . . . 60 105 . 45 . 90 45 . 60 15 Destroy Structure 1198 | . 3 . 18 . . 67 51 83 1 . . . . 10 1 59 25 48 . 30 238 170 10 375 9 Partial Spotted 15 | . . . . . . . 15 . . . . . . . . . . . . . . . . . . Lose Combat Pursuer 225 | . 15 . 30 . . . . . . 15 . . . . . . 30 . . . 15 45 15 30 30 Influence Decreases 11199 | 50 564 133 747 468 . 426 591 709 445 301 70 . 91 137 10 664 1376 593 278 258 719 852 661 610 446 Entered New Map 2836 | . . 23 . 231 . . 66 161 192 . . . . 13 6 . 474 211 138 115 199 318 236 37 416 Time Decay 7182 | 50 544 110 547 227 . 406 525 518 253 261 60 . 91 124 3 494 592 262 120 93 510 474 395 523 . Lost Part 350 | . 20 . 10 10 . 20 . 30 . . 10 . . . . . 40 20 . 10 10 60 30 50 30 Lost Ally 681 | . . . 40 . . . . . . 40 . . . . 1 170 270 100 20 40 . . . . . Purge Threat 150 | . . . 150 . . . . . . . . . . . . . . . . . . . . . . Squads Dispatched 80 | . 4 . 8 . . . 7 1 4 . . . . 1 . 10 1 . . 3 10 12 3 8 8 Investigation 22 | . 4 . 4 . . . 3 . 2 . . . . . . 2 . . . 2 1 1 2 1 . Extermination 16 | . . . . . . . . . 2 . . . . 1 . 4 . . . . 2 3 . 4 . Reinforcement 18 | . . . 4 . . . 1 1 . . . . . . . 2 . . . 1 3 4 1 1 . Assault 14 | . . . . . . . . . . . . . . . . 2 1 . . . 1 . . 2 8 Garrison 10 | . . . . . . . 3 . . . . . . . . . . . . . 3 4 . . . Intercept . | . . . . . . . . . . . . . . . . . . . . . . . . . . Searches Triggered . | . . . . . . . . . . . . . . . . . . . . . . . . . . Construction Impeded 5 | . . . 1 . . . . . . . . . . . . . . . . 1 2 1 . . . Haulers Reinforced . | . . . . . . . . . . . . . . . . . . . . . . . . . . Active Scanning Responses . | . . . . . . . . . . . . . . . . . . . . . . . . . . Cargo Convoy Interrupts . | . . . . . . . . . . . . . . . . . . . . . . . . . . Stealth | -11 -10 -10 -9 -9 -9 -8 -8 -8 -7 -7 -7 -7 -6 -6 -6 -6 -6 -6 -6 -6 -5 -4 -3 -2 -2 --------- Run | Yrd Mat Min Mat Min Exi Min Mat Sto Fac Low Low Zio Pro Fac Was Fac Ext Cet Arc Hub Fac Fac Res Res Qua Distress Signals 34 | . 3 . 3 . . . 2 1 . . . . . . . 3 2 3 . 2 2 3 7 3 . Communications Jammed 52 | . . . . . . . . . . . . . . . . . . . . . . . . 52 . Distress Signals 48 | . . . . . . . . . . . . . . . . . . . . . . . . 48 . Times Spotted 485 | . 30 2 35 7 . 16 25 21 3 17 2 . 4 2 5 35 29 8 19 15 31 35 31 54 59 Peak Tracking Total 47 | . 4 2 4 3 . 4 6 6 1 7 2 . 3 1 2 6 5 4 1 8 4 8 5 12 47 Tactical Retreats 13 | . 1 . 1 1 . . . . . 1 . . . . . . 2 . . . 1 2 1 2 1 Traps | -11 -10 -10 -9 -9 -9 -8 -8 -8 -7 -7 -7 -7 -6 -6 -6 -6 -6 -6 -6 -6 -5 -4 -3 -2 -2 ------- Run | Yrd Mat Min Mat Min Exi Min Mat Sto Fac Low Low Zio Pro Fac Was Fac Ext Cet Arc Hub Fac Fac Res Res Qua Traps Triggered 21 | . 2 . 1 . . . 3 2 2 . . . . 1 . 2 2 . . . . 3 2 . 1 Indirectly 2 | . . . . . . . . . . . . . . . . . 2 . . . . . . . . Trap Hack Attempts . | . . . . . . . . . . . . . . . . . . . . . . . . . . Triggered . | . . . . . . . . . . . . . . . . . . . . . . . . . . Disarmed . | . . . . . . . . . . . . . . . . . . . . . . . . . . Reprogrammed . | . . . . . . . . . . . . . . . . . . . . . . . . . . Reused 2 | . . . . . . . . . . 2 . . . . . . . . . . . . . . . Traps Extracted . | . . . . . . . . . . . . . . . . . . . . . . . . . . Installed 6 | . . . . . . . . . . 6 . . . . . . . . . . . . . . . Triggered 2 | . . . . . . . . . . 2 . . . . . . . . . . . . . . . Most Traps Carried 3 | . . . . . . . . . . 3 . . . . . . . . . . . . . . . Machines | -11 -10 -10 -9 -9 -9 -8 -8 -8 -7 -7 -7 -7 -6 -6 -6 -6 -6 -6 -6 -6 -5 -4 -3 -2 -2 ---------- Run | Yrd Mat Min Mat Min Exi Min Mat Sto Fac Low Low Zio Pro Fac Was Fac Ext Cet Arc Hub Fac Fac Res Res Qua Machines Disabled 50 | . . . 3 1 . 2 5 9 1 1 . . . . . 4 7 . 3 . 6 3 . 4 1 Max in Single Turn 3 | . . . 1 1 . 1 2 2 1 1 . . . . . 2 1 . 1 . 3 1 . 1 1 Garrison Access 3 | . . . . . . . . . 2 . . . . . . . . . . . . . . . 1 Network Hub 1 | . . . . . . . . . . . . . . . . . . . . 1 . . . . . Machines Repaired . | . . . . . . . . . . . . . . . . . . . . . . . . . . Machines Dismantled 2 | . . . . . . . . . . . . . . . . . 2 . . . . . . . . Machines Sabotaged 1 | . . . . . . . . . . . . . . . . . . . . 1 . . . . . Overloaded Fab Kills . | . . . . . . . . . . . . . . . . . . . . . . . . . . Hacking | -11 -10 -10 -9 -9 -9 -8 -8 -8 -7 -7 -7 -7 -6 -6 -6 -6 -6 -6 -6 -6 -5 -4 -3 -2 -2 --------- Run | Yrd Mat Min Mat Min Exi Min Mat Sto Fac Low Low Zio Pro Fac Was Fac Ext Cet Arc Hub Fac Fac Res Res Qua Machines Accessed 80 | . 9 1 7 . 2 . 9 10 7 . . . . 6 . 10 4 . . 3 4 1 4 3 . Terminals 46 | . 7 1 5 . . . 5 10 2 . . . . 3 . 6 2 . . 3 1 . . 1 . Fabricators 6 | . . . . . . . . . 1 . . . . 1 . 1 . . . . 1 1 1 . . Repair Stations 6 | . . . . . . . 2 . 2 . . . . . . . . . . . 1 . . 1 . Recycling Units 12 | . 2 . 2 . . . 1 . . . . . . . . 2 2 . . . 1 . 1 1 . Scanalyzers 4 | . . . . . . . 1 . . . . . . 1 . 1 . . . . . . 1 . . Garrison Access 4 | . . . . . . . . . 2 . . . . 1 . . . . . . . . 1 . . Total Hacks 204 | . 23 1 25 . 2 . 27 25 16 . . . . 15 . 23 9 . . 5 12 1 11 9 . Successful 99 | . 13 1 15 . 2 . 16 15 9 . . . . 8 . 5 2 . . 2 4 . 5 2 . Failed 103 | . 9 . 10 . . . 11 10 7 . . . . 7 . 18 7 . . 3 8 1 5 7 . Catastrophic 20 | . 1 . 2 . . . . 1 . . . . . 1 . 1 3 . . 3 4 . 2 2 . Database Lockouts 2 | . 1 . . . . . . . . . . . . . . . . . . . . . 1 . . Manual 102 | . 22 . 18 . 1 . 10 17 8 . . . . 2 . 13 2 1 . 5 . . 2 1 . Terminals 127 | . 20 1 18 . . . 17 25 7 . . . . 5 . 17 4 . . 5 1 . . 7 . Fabricators 16 | . . . . . . . . . 1 . . . . 2 . 2 . . . . 5 1 5 . . Repair Stations 16 | . . . . . . . 5 . 6 . . . . . . . . . . . 4 . . 1 . Recycling Units 24 | . 3 . 7 . . . 2 . . . . . . . . 3 5 . . . 2 . 1 1 . Scanalyzers 13 | . . . . . . . 3 . . . . . . 5 . 1 . . . . . . 4 . . Garrison Access 6 | . . . . . . . . . 2 . . . . 3 . . . . . . . . 1 . . Terminal Hacks 24 | . 2 1 3 . 2 . 2 5 3 . . . . 3 . 2 . . . . . . . 1 . Record 1 | . . . . . 1 . . . . . . . . . . . . . . . . . . . . Robot Analysis 3 | . 2 . 1 . . . . . . . . . . . . . . . . . . . . . . Prototype ID Bank 2 | . . . . . . . 2 . . . . . . . . . . . . . . . . . . Open Door 5 | . . . . . . . . 4 . . . . . . . 1 . . . . . . . . . Branch Access Points 3 | . . . . . . . . . 1 . . . . 1 . 1 . . . . . . . . . Alert Level 2 | . . . . . . . . 1 1 . . . . . . . . . . . . . . . . Unreport Threat 1 | . . . 1 . . . . . . . . . . . . . . . . . . . . . . Locate Traps 3 | . . . . . . . . . 1 . . . . 1 . . . . . . . . . 1 . Zone Layout 3 | . . 1 1 . . . . . . . . . . 1 . . . . . . . . . . . Proto ID Catalog 1 | . . . . . 1 . . . . . . . . . . . . . . . . . . . . Fabricator Hacks 8 | . . . . . . . . . . . . . . 1 . 1 . . . . 3 . 3 . . Network Status 3 | . . . . . . . . . . . . . . . . 1 . . . . 1 . 1 . . Load Schematic 2 | . . . . . . . . . . . . . . . . . . . . . 1 . 1 . . Build 3 | . . . . . . . . . . . . . . 1 . . . . . . 1 . 1 . . Repair Station Hacks 4 | . . . . . . . 2 . 1 . . . . . . . . . . . 1 . . . . Scan Component 3 | . . . . . . . 1 . 1 . . . . . . . . . . . 1 . . . . Repair 1 | . . . . . . . 1 . . . . . . . . . . . . . . . . . . Recycling Unit Hacks 4 | . . . 2 . . . 1 . . . . . . . . . 1 . . . . . . . . Retrieve Components 4 | . . . 2 . . . 1 . . . . . . . . . 1 . . . . . . . . Scanalyzer 9 | . . . . . . . 3 . . . . . . 4 . 1 . . . . . . 1 . . Insert Component 1 | . . . . . . . . . . . . . . 1 . . . . . . . . . . . Retrieve Study 8 | . . . . . . . 3 . . . . . . 3 . 1 . . . . . . 1 . . Garrison Access Hacks 2 | . . . . . . . . . 2 . . . . . . . . . . . . . . . . Seal Access 2 | . . . . . . . . . 2 . . . . . . . . . . . . . . . . Unauthorized Hacks 48 | . 11 . 10 . . . 8 10 3 . . . . . . 1 1 . . 2 . . 1 1 . Terminals 39 | . 9 . 8 . . . 6 10 2 . . . . . . 1 1 . . 2 . . . . . Assimilate 2 | . . . . . . . . . . . . . . . . 1 1 . . . . . . . . Botnet 16 | . 4 . 4 . . . 2 5 1 . . . . . . . . . . . . . . . . Skim 19 | . 5 . 4 . . . 4 5 1 . . . . . . . . . . . . . . . . Sabotage 2 | . . . . . . . . . . . . . . . . . . . . 2 . . . . . Fabricators 1 | . . . . . . . . . . . . . . . . . . . . . . . 1 . . Prioritize 1 | . . . . . . . . . . . . . . . . . . . . . . . 1 . . Repair Stations 3 | . . . . . . . 1 . 1 . . . . . . . . . . . . . . 1 . Patch 3 | . . . . . . . 1 . 1 . . . . . . . . . . . . . . 1 . Recycling Units 5 | . 2 . 2 . . . 1 . . . . . . . . . . . . . . . . . . Tunnel 5 | . 2 . 2 . . . 1 . . . . . . . . . . . . . . . . . . Scanalyzers . | . . . . . . . . . . . . . . . . . . . . . . . . . . Garrison Access . | . . . . . . . . . . . . . . . . . . . . . . . . . . Data Cores Recovered 4 | . 1 . . . . . . 1 . . . . . . . 1 1 . . . . . . . . Used . | . . . . . . . . . . . . . . . . . . . . . . . . . . Hacking Detections 60 | . 8 . 4 . . . 3 8 5 . . . . 5 . 10 4 . . 2 4 1 4 2 . Full Trace Events 4 | . . . . . . . . . 1 . . . . . . 1 . . . . 1 . 1 . . Feedback Events . | . . . . . . . . . . . . . . . . . . . . . . . . . . Feedback Blocked . | . . . . . . . . . . . . . . . . . . . . . . . . . . Robot Schematics Acquired 3 | . . . . . . . . . . . . 3 . . . . . . . . . . . . . Robots Built . | . . . . . . . . . . . . . . . . . . . . . . . . . . Authchips . | . . . . . . . . . . . . . . . . . . . . . . . . . . Time . | . . . . . . . . . . . . . . . . . . . . . . . . . . Total Robot Build Rating . | . . . . . . . . . . . . . . . . . . . . . . . . . . Part Schematics Acquired 15 | . . . . . . . . . . . . 15 . . . . . . . . . . . . . Parts Built 6 | . . . . . . . . . . . . . . 2 . . . . . . 2 . 2 . . Authchips . | . . . . . . . . . . . . . . . . . . . . . . . . . . Time 217 | . . . . . . . . . . . . . . 128 . . . . . . 42 . 47 . . Total Part Build Rating 34 | . . . . . . . . . . . . . . 16 . . . . . . 8 . 10 . . Part Studies Acquired 8 | . . . . . . . 3 . . . . . . 3 . 1 . . . . . . 1 . . Parts Repaired 1 | . . . . . . . 1 . . . . . . . . . . . . . . . . . . Time 32 | . . . . . . . 32 . . . . . . . . . . . . . . . . . . Parts Recycled . | . . . . . . . . . . . . . . . . . . . . . . . . . . Recycled Matter . | . . . . . . . . . . . . . . . . . . . . . . . . . . Retrieved Matter . | . . . . . . . . . . . . . . . . . . . . . . . . . . Retrieved Components 30 | . . . 19 . . . 9 . . . . . . . . . 2 . . . . . . . . Parts Scanalyzed . | . . . . . . . . . . . . . . . . . . . . . . . . . . Part Schematics Acquired . | . . . . . . . . . . . . . . . . . . . . . . . . . . Parts Damaged . | . . . . . . . . . . . . . . . . . . . . . . . . . . Bothacking | -11 -10 -10 -9 -9 -9 -8 -8 -8 -7 -7 -7 -7 -6 -6 -6 -6 -6 -6 -6 -6 -5 -4 -3 -2 -2 ------------ Run | Yrd Mat Min Mat Min Exi Min Mat Sto Fac Low Low Zio Pro Fac Was Fac Ext Cet Arc Hub Fac Fac Res Res Qua Used RIF Installer . | . . . . . . . . . . . . . . . . . . . . . . . . . . Robots Hacked . | . . . . . . . . . . . . . . . . . . . . . . . . . . Non-combat . | . . . . . . . . . . . . . . . . . . . . . . . . . . Combat . | . . . . . . . . . . . . . . . . . . . . . . . . . . Robot Hacks Applied . | . . . . . . . . . . . . . . . . . . . . . . . . . . Relay Couplers Released 3 | . . . . . . . . . . . . . . . . . . . . . . . . . 3 Machine Destruction 3 | . . . . . . . . . . . . . . . . . . . . . . . . . 3 Fabnet Peak Effective % . | . . . . . . . . . . . . . . . . . . . . . . . . . . Robots Rewired 20 | . . . . . . . . . . 2 . . . . . . 18 . . . . . . . . Allies Hacked . | . . . . . . . . . . . . . . . . . . . . . . . . . . Hacks Repelled . | . . . . . . . . . . . . . . . . . . . . . . . . . . Allies | -11 -10 -10 -9 -9 -9 -8 -8 -8 -7 -7 -7 -7 -6 -6 -6 -6 -6 -6 -6 -6 -5 -4 -3 -2 -2 -------- Run | Yrd Mat Min Mat Min Exi Min Mat Sto Fac Low Low Zio Pro Fac Was Fac Ext Cet Arc Hub Fac Fac Res Res Qua Total Allies 50 | . . 3 . . . . . . . 2 . . . . 18 . 22 5 . . . . . . . Largest Group 18 | . . 3 2 . . . . . . 2 . . . . 18 13 8 9 7 6 . . . . . Highest-Rated Group 713 | . . 40 32 . . . . . . 46 . . . . 656 481 356 713 527 496 . . . . . Highest-Rated Ally 159 | . . 16 16 . . . . . . 30 . . . . 50 46 159 159 96 96 . . . . . Total Orders 18 | . . . . . . . . . . . . . 1 . . . 8 4 2 3 . . . . . STAY 5 | . . . . . . . . . . . . . . . . . 2 1 . 2 . . . . . ROAM 3 | . . . . . . . . . . . . . . . . . 2 . 1 . . . . . . FOLLOW 5 | . . . . . . . . . . . . . . . . . 3 1 . 1 . . . . . AID 4 | . . . . . . . . . . . . . . . . . 1 2 1 . . . . . . EXPLORE 1 | . . . . . . . . . . . . . 1 . . . . . . . . . . . . Ally Attacks 577 | . . 8 13 . . . . . . 14 . . . . 145 167 84 87 27 32 . . . . . Total Damage 14131 | . . 77 163 . . . . . . 215 . . . . 2852 3888 1738 1992 1049 2157 . . . . . Kills 73 | . . 2 4 . . . . . . 1 . . . . 6 23 10 9 4 14 . . . . . Allies Corrupted 5 | . . . . . . . . . . . . . . . . 4 . . . 1 . . . . . Allies Melted . | . . . . . . . . . . . . . . . . . . . . . . . . . . Intel | -11 -10 -10 -9 -9 -9 -8 -8 -8 -7 -7 -7 -7 -6 -6 -6 -6 -6 -6 -6 -6 -5 -4 -3 -2 -2 ------- Run | Yrd Mat Min Mat Min Exi Min Mat Sto Fac Low Low Zio Pro Fac Was Fac Ext Cet Arc Hub Fac Fac Res Res Qua Active Infowar (turns) 11699 | 233 499 997 542 . . . . . 125 1615 723 1767 971 . . . . . . . 1166 1118 421 1522 . Sensors 5106 | . . . . . . . . . . 1615 723 1767 971 . . . . . . . . . 30 . . Terrain 1938 | . . . . . . . . . . . . . . . . . . . . . 820 1118 . . . Seismic 2271 | 233 499 997 542 . . . . . . . . . . . . . . . . . . . . . . Machine Analysis 125 | . . . . . . . . . 125 . . . . . . . . . . . . . . . . Jamming 3079 | . . . . . . . . . . . . . . . . . . . . . 1166 . 391 1522 . Robot Analysis Total 3 | . 2 . 1 . . . . . . . . . . . . . . . . . . . . . . Derelict Logs Recovered 9 | . . 1 . 1 . . . . . 3 1 1 2 . . . . . . . . . . . . Drone Launches 2 | . . . . . . . . . . . . . 2 . . . . . . . . . . . . Drone Recoveries . | . . . . . . . . . . . . . . . . . . . . . . . . . . Exploration | -11 -10 -10 -9 -9 -9 -8 -8 -8 -7 -7 -7 -7 -6 -6 -6 -6 -6 -6 -6 -6 -5 -4 -3 -2 -2 ------------- Run | Yrd Mat Min Mat Min Exi Min Mat Sto Fac Low Low Zio Pro Fac Was Fac Ext Cet Arc Hub Fac Fac Res Res Qua Turns Passed 29766 | 324 1642 997 1809 1222 478 1113 2111 1430 979 1959 723 1777 971 800 290 1951 1867 570 255 399 1384 1215 1797 1570 133 Spaces Moved 14639 | 148 816 578 650 495 215 422 760 689 601 980 453 1154 525 430 153 1044 874 205 66 156 664 534 1323 516 188 Core 277 | 4 . . . . . . . . . . . . . . . . . . . . . 42 52 . 179 Treads 13660 | 144 816 578 650 495 215 422 760 689 601 980 453 1154 525 430 153 1044 874 205 66 156 664 346 724 516 . Legs 146 | . . . . . . . . . . . . . . . . . . . . . . 146 . . . Wheels 190 | . . . . . . . . . . . . . . . . . . . . . . . 190 . . Hover . | . . . . . . . . . . . . . . . . . . . . . . . . . . Flight 366 | . . . . . . . . . . . . . . . . . . . . . . . 357 . 9 Fastest Speed 25 | 50 160 160 160 160 160 160 145 145 145 150 150 150 150 150 150 152 152 160 160 160 160 50 25 161 40 Average Speed 154 | 157 160 160 205 160 160 185 154 145 148 150 150 150 150 150 151 152 157 160 160 160 160 166 112 203 51 Slowest Speed 250 | 160 160 160 240 160 160 240 160 145 150 150 150 150 150 150 152 152 160 160 160 160 160 220 250 250 200 Overloaded Moves . | . . . . . . . . . . . . . . . . . . . . . . . . . . Propulsion Burnouts . | . . . . . . . . . . . . . . . . . . . . . . . . . . Robots Hopped 6 | . . . . . . . . . . . . . . . . . . . . . . . 2 . 4 Potential Cave-ins . | . . . . . . . . . . . . . . . . . . . . . . . . . . Cave-ins Triggered . | . . . . . . . . . . . . . . . . . . . . . . . . . . Exploration Rate (%) 57 | 6 98 95 60 95 60 84 63 90 14 96 72 84 82 15 87 32 88 64 74 23 18 14 35 21 33 Regions Visited 25 Branch Regions 14 Pre-discovered Areas 14 | . 3 1 2 2 1 . 1 1 . 1 1 1 . . . . . . . . . . . . . Known Exits Taken 10 | . 1 1 . . . . 1 . 1 1 1 1 1 . . 1 . . . . . . . 1 . Unknown Exits Taken 13 | 1 . . 1 1 1 1 . 1 . . . . . . . . 1 1 1 1 1 1 1 . . Scrap Searched 17 | . . 1 . 3 . 1 . . . 2 1 5 4 . . . . . . . . . . . . Spaces Dug 109 | . . . . . . 10 12 18 . . . . . 9 . 9 . . . 2 16 15 . 16 2 Terrain Destroyed 799 | . . 1 11 . . 85 51 87 . 1 . . . 10 1 65 17 66 . 3 164 102 2 129 4 Melee . | . . . . . . . . . . . . . . . . . . . . . . . . . . Projectile 234 | . . 1 . . . . 14 23 . 1 . . . 10 1 28 17 . . 3 39 31 2 60 4 AOE 565 | . . . 11 . . 85 37 64 . . . . . . . 37 . 66 . . 125 71 . 69 . Terrain Rammed . | . . . . . . . . . . . . . . . . . . . . . . . . . . Walls Destroyed . | . . . . . . . . . . . . . . . . . . . . . . . . . . Machines Disabled . | . . . . . . . . . . . . . . . . . . . . . . . . . . Actions | -11 -10 -10 -9 -9 -9 -8 -8 -8 -7 -7 -7 -7 -6 -6 -6 -6 -6 -6 -6 -6 -5 -4 -3 -2 -2 --------- Run | Yrd Mat Min Mat Min Exi Min Mat Sto Fac Low Low Zio Pro Fac Was Fac Ext Cet Arc Hub Fac Fac Res Res Qua Total 20262 | 186 1022 627 916 896 349 672 1582 1017 668 1408 468 1198 691 578 192 1338 1251 434 201 295 899 790 1542 827 215 Wait 3946 | 3 101 35 121 384 134 200 727 252 29 331 . 18 151 104 11 238 155 192 109 128 147 149 67 151 9 Move 14604 | 147 815 577 649 494 214 421 759 688 600 979 452 1153 524 430 152 1043 873 204 65 155 663 533 1318 515 181 Hop 5 | . . . . . . . . . . . . . . . . . . . . . . . 2 . 3 Pick Up 146 | 4 15 1 7 . 1 . 7 3 7 14 . 4 1 9 4 1 3 7 2 1 7 7 27 11 3 Fast Attach 95 | 7 2 . 1 1 . . 3 4 2 1 . 9 1 . 1 . 3 3 3 . 1 7 35 7 4 Attach 61 | . . . 2 1 . 1 2 2 3 1 1 . . 7 1 1 4 4 2 . 5 6 9 6 3 Detach 10 | . . . . . . . . . 1 . . . . . . . 1 . . . . 2 3 1 2 Swap 145 | . 10 1 18 2 . 11 15 13 7 8 2 3 3 5 1 2 8 4 . . 2 6 10 14 . Drop 182 | . 12 1 13 . . 2 12 8 8 15 . 10 2 10 7 2 4 8 5 1 3 11 28 18 2 Fire 851 | 25 67 12 105 14 . 37 57 46 11 29 13 1 9 13 15 49 58 9 15 8 66 52 36 99 5 Melee 3 | . . . . . . . . . . . . . . . . . . 3 . . . . . . . Ram 10 | . . . . . . . . . . . . . . . . . . . . . . . 7 . 3 Kick 3 | . . . . . . . . . . . . . . . . . . . . . . 3 . . . Crush 16 | . . . . . . . . 1 . . . . . . . 2 . . . 2 5 1 . 5 . Escape Stasis 13 | . . . . . . . . . . . . . . . . . . . . . . 13 . . . Rewire 150 | . . . . . . . . . . 24 . . . . . . 126 . . . . . . . . Trap 6 | . . . . . . . . . . 6 . . . . . . . . . . . . . . . Miscellaneous 16 | . . . . . . . . . . . . . . . . . 16 . . . . . . . . Route ------- -11/Scrapyard -10/Materials (discovered 6 exits: *Mat x3 / *Min x2 / Sub) -10/Mines (discovered 2 exits: *Mat x2) -9/Materials (discovered 3 exits: *Mat x2 / [*Min]) -9/Mines (discovered 3 exits: *Mat / *Exi / *Zio) -9/Exiles -8/Mines -8/Materials (discovered 3 exits: *Fac / *Sto x2) -8/Storage (discovered 2 exits: *Fac / [*Rec]) -7/Factory (discovered 4 exits: Fac x2 / *Low x2) -7/Lower Caves -7/Lower Caves -7/Zion -6/Proximity Caves -6/Factory (discovered 4 exits: *Low x2 / Ext x2) -6/Waste -6/Factory (discovered 5 exits: *Fac / *Low x2 / *Ext x2) -6/Extension (discovered 2 exits: *Fac / *Cet) -6/Cetus (discovered 2 exits: *Fac / [*Arc]) -6/Archives (discovered 2 exits: *Fac / *Hub) -6/Hub_04(d) -5/Factory -4/Factory -3/Research (discovered 2 exits: *Res / *Tes) -2/Research -2/Quarantine History --------- Turn | Location | Event 13 | -11/Scrapyard | Discovered new exit (range 15) 325 | -11/Scrapyard | Entered Materials 326 | -10/Materials | Build established: Mutant 743 | -10/Materials | Discovered new exit (range 15) 1065 | -10/Materials | Discovered new exit (range 16) 1126 | -10/Materials | Identified exit to Mines 1126 | -10/Materials | Identified exit to Materials 1137 | -10/Materials | Build established: Scavenger-Mutant 1177 | -10/Materials | Discovered exit to Materials (range 16) 1199 | -10/Materials | Learned location of 1 exit from Recycling 1357 | -10/Materials | Identified exit to Subcaves 1411 | -10/Materials | Learned location of 2 exits from Mines 1440 | -10/Materials | Loaded intel: 1 repair station location 1477 | -10/Materials | Learned location of Recycling (-8) 1523 | -10/Materials | Learned Storage stockpile data 1532 | -10/Materials | Build established: Mutant 1691 | -10/Materials | Central database locked down 1967 | -10/Materials | Entered Mines 2323 | -10/Mines | Assisted by bots powering up and referring to "LRC-V3" 2639 | -10/Mines | Learned location of Zion (-7) 2964 | -10/Mines | Entered Materials 2964 | -9/Materials | Accompanied by 2 allies 2964 | -9/Materials | Evolved 2 slots: Utility x2 3368 | -9/Materials | Discovered new exit (range 6) 3887 | -9/Materials | Discovered new exit (range 16) 3888 | -9/Materials | Build established: Scavenger-Mutant 4401 | -9/Materials | Discovered new exit (range 16) 4773 | -9/Materials | Entered Mines 4797 | -9/Mines | Assembled infested the area 5752 | -9/Mines | Discovered new exit (range 5) 5754 | -9/Mines | A Derelict revealed a hidden shortcut to a safe place 5987 | -9/Mines | Deemed a non-threat by the Exiles lab entrance 5989 | -9/Mines | Discovered new exit (range 5) 5995 | -9/Mines | Entered Exiles 6039 | -9/Exiles | Met 8R-AWN 6063 | -9/Exiles | Met EX-HEX 6109 | -9/Exiles | Met EX-BIN 6131 | -9/Exiles | Aligned with FarCom system 6133 | -9/Exiles | Given EX-Vault access code 6178 | -9/Exiles | Opened EX-Vault 6187 | -9/Exiles | Found Latent Energy Streamer 6220 | -9/Exiles | Warned to stay clear of 0b10 Research branches 6267 | -9/Exiles | Met EX-DEC 6324 | -9/Exiles | Discovered new exit (range 10) 6473 | -9/Exiles | Left Exiles lab with Latent Energy Streamer 6473 | -9/Exiles | Entered Mines 7431 | -8/Mines | Discovered new exit (range 8) 7586 | -8/Mines | Entered Materials 7586 | -8/Materials | Evolved 2 slots: Propulsion x1, Weapon x1 7587 | -8/Materials | Identified exit to Storage 7895 | -8/Materials | Build established: Scavenger-Skirmisher 8073 | -8/Materials | Discovered new exit (range 7) 8358 | -8/Materials | Garrison activated, responded to threat 8566 | -8/Materials | Build established: Skirmisher 9639 | -8/Materials | Repaired Med. Armor Plating 9697 | -8/Materials | Entered Storage 10218 | -8/Storage | Discovered new exit (range 16) 10624 | -8/Storage | Used back door to open Recycling access 10624 | -8/Storage | Discovered new exit (range 5) 10797 | -8/Storage | Lost 3 parts (1p1u1w) 10886 | -8/Storage | Learned 4 Recycling zone layouts 10967 | -8/Storage | Learned 2 Lower Caves zone layouts 11127 | -8/Storage | Entered Factory 11127 | -7/Factory | Evolved 2 slots: Utility x2 11128 | -7/Factory | Identified exit to Factory 11128 | -7/Factory | Identified exit to Lower Caves 11563 | -7/Factory | Build established: Gunner 12106 | -7/Factory | Entered Lower Caves 12736 | -7/Lower Caves | Attracted the attention of an 0b10 outpost 12809 | -7/Lower Caves | Destroyed 7 combat bots 12942 | -7/Lower Caves | Learned Factory stockpile data 13041 | -7/Lower Caves | Build established: Tank 13362 | -7/Lower Caves | Build established: Skirmisher 13785 | -7/Lower Caves | Encountered a Warlord checkpoint 13858 | -7/Lower Caves | Identified exit to Lower Caves 14065 | -7/Lower Caves | Entered another Lower Caves area 14579 | -7/Lower Caves | Encountered a Warlord checkpoint 14627 | -7/Lower Caves | Discovered new exit (range 8) 14678 | -7/Lower Caves | Identified exit to Zion 14788 | -7/Lower Caves | Entered Zion 14856 | -7/Zion | System corruption cleaned by Quarantine Array 14951 | -7/Zion | Found Prototype Processor 14951 | -7/Zion | Identified Exp. Targeting Computer 14955 | -7/Zion | Found Prototype Processor 14955 | -7/Zion | Identified Exp. Armor Integrity Analyzer 14959 | -7/Zion | Found Prototype Processor 14959 | -7/Zion | Identified Spectral Analyzer 14962 | -7/Zion | Found Prototype Processor 14962 | -7/Zion | Identified Exp. Core Analyzer 15246 | -7/Zion | Build established: Gunner 15453 | -7/Zion | Learned Factory garrison access intel 15599 | -7/Zion | Found Prototype Device 15599 | -7/Zion | Identified Mobile Refinery Mk. CCLXVII 15678 | -7/Zion | Found Prototype Device 15678 | -7/Zion | Identified Phasing AFG 16097 | -7/Zion | Rebuked by Imprinter 16547 | -7/Zion | Discovered new exit (range 12) 16563 | -7/Zion | Identified exit to Proximity Caves 16565 | -7/Zion | Entered Proximity Caves 16622 | -6/Proximity Caves | Learned location of 1 exit from Lower Caves 16830 | -6/Proximity Caves | Learned Factory terminal intel 17263 | -6/Proximity Caves | Attracted the attention of an 0b10 checkpoint 17503 | -6/Proximity Caves | Discovered exit to Factory (range 7) 17536 | -6/Proximity Caves | Entered Factory 17536 | -6/Factory | Evolved 2 slots: Utility x2 17537 | -6/Factory | Identified exit to Extension 17539 | -6/Factory | Loaded intel: 28 terminal locations 17540 | -6/Factory | Loaded intel: 4 garrison access locations 17658 | -6/Factory | Identified exit to Lower Caves 18178 | -6/Factory | Fabricated Adv. Weapon Cycler? 18336 | -6/Factory | Sucked down chute 18336 | -6/Factory | Entered Waste 18388 | -6/Waste | Warlord forces began an assault 18410 | -6/Waste | Spotted C-40 Crusher 18418 | -6/Waste | Spotted C-40 Crusher 18420 | -6/Waste | Allies destroyed C-40 Crusher 18427 | -6/Waste | Allies destroyed C-40 Crusher 18442 | -6/Waste | Spotted C-40 Crusher 18444 | -6/Waste | Allies destroyed C-40 Crusher 18456 | -6/Waste | Spotted C-40 Crusher 18467 | -6/Waste | Allies destroyed C-40 Crusher 18477 | -6/Waste | Spotted C-40 Crusher 18478 | -6/Waste | Allies destroyed C-40 Crusher 18492 | -6/Waste | Spotted C-40 Crusher 18505 | -6/Waste | Allies destroyed C-40 Crusher 18554 | -6/Waste | Discovered new exit (range 14) 18626 | -6/Waste | Entered Factory 18626 | -6/Factory | Accompanied by 13 allies 18654 | -6/Factory | Discovered exit to Lower Caves (range 5) 18743 | -6/Factory | Build established: Tank 18855 | -6/Factory | Discovered exit to Lower Caves (range 16) 19366 | -6/Factory | P-60 Hacker assimilated allied 94-OE2(m) 19496 | -6/Factory | Discovered new exit (range 5) 20026 | -6/Factory | First assault squad dispatched 20156 | -6/Factory | Lost 3 allies 20577 | -6/Factory | Entered Extension 21032 | -6/Extension | Lost 5 allies 21255 | -6/Extension | Spotted B-75 Beast 21277 | -6/Extension | First assault squad dispatched 21289 | -6/Extension | Destroyed B-75 Beast 21340 | -6/Extension | Build established: Commander-Tank 21644 | -6/Extension | Build established: Scavenger-Tank 21677 | -6/Extension | Spotted B-75 Beast 21683 | -6/Extension | Destroyed B-75 Beast 21984 | -6/Extension | Rescued a captive Derelict 22035 | -6/Extension | Rescued a captive Derelict 22140 | -6/Extension | Rescued A7 22376 | -6/Extension | Discovered new exit (range 10) 22378 | -6/Extension | Discovered new exit (range 6) 22444 | -6/Extension | Entered Cetus 22444 | -6/Cetus | Accompanied by 8 allies (A7) 22449 | -6/Cetus | Acquired a Cetus Manufacturing Module code from A7 22474 | -6/Cetus | Spotted Cetus Guard 22476 | -6/Cetus | Spotted Cetus Guard 22476 | -6/Cetus | Spotted Cetus Guard 22476 | -6/Cetus | Spotted Cetus Guard 22480 | -6/Cetus | Allies destroyed Cetus Guard 22482 | -6/Cetus | Allies destroyed Cetus Guard 22498 | -6/Cetus | Allies destroyed Cetus Guard 22504 | -6/Cetus | Allies destroyed Cetus Guard 22524 | -6/Cetus | Lost 4 allies 22569 | -6/Cetus | Started Cetus Manufacturing Module 22594 | -6/Cetus | Manufactured an Enhanced Grunt 22619 | -6/Cetus | Manufactured an Enhanced Grunt 22644 | -6/Cetus | Manufactured an Enhanced Grunt 22669 | -6/Cetus | Manufactured an Enhanced Grunt 22694 | -6/Cetus | Manufactured an Enhanced Grunt 22742 | -6/Cetus | Discovered new exit (range 16) 22838 | -6/Cetus | Spotted Cetus Guard 22838 | -6/Cetus | Spotted Cetus Guard 22841 | -6/Cetus | Allies destroyed Cetus Guard 22844 | -6/Cetus | Allies destroyed Cetus Guard 22859 | -6/Cetus | Spotted Cetus Guard 22865 | -6/Cetus | Allies destroyed Cetus Guard 22882 | -6/Cetus | Discovered new exit (range 15) 22890 | -6/Cetus | Met Revision 17 22928 | -6/Cetus | Build established: Commander-Tank 22958 | -6/Cetus | Found Prototype Protection 22958 | -6/Cetus | Identified Med. Regenerative Plating 22963 | -6/Cetus | Murdered A7 22973 | -6/Cetus | Extracted ID and sensor layout for unrecognized location from A7's data core 23014 | -6/Cetus | Entered Archives 23014 | -6/Archives | Accompanied by 7 allies 23111 | -6/Archives | Discovered new exit (range 16) 23126 | -6/Archives | System corruption reached 10% 23241 | -6/Archives | Discovered new exit (range 14) 23269 | -6/Archives | Entered Hub_04(d) 23269 | -6/Hub_04(d) | Accompanied by 6 allies 23605 | -6/Hub_04(d) | Discovered new exit (range 7) 23655 | -6/Hub_04(d) | Network Hub disabled 23661 | -6/Hub_04(d) | Spotted Lightning 23663 | -6/Hub_04(d) | Spotted Lightning 23665 | -6/Hub_04(d) | Spotted Lightning 23668 | -6/Hub_04(d) | Entered Factory 23668 | -5/Factory | Evolved 2 slots: Propulsion x1, Utility x1 23763 | -5/Factory | Build established: Scavenger-Gunner 23817 | -5/Factory | Garrison activated, responded to threat 24251 | -5/Factory | Discovered new exit (range 13) 24266 | -5/Factory | Destroyed 9 combat bots 24788 | -5/Factory | Fabricated Energy Filter? 24868 | -5/Factory | First assault squad dispatched 25052 | -5/Factory | Entered another Factory area 25052 | -4/Factory | Evolved 2 slots: Power x1, Utility x1 25830 | -4/Factory | Garrison activated, responded to threat 25831 | -4/Factory | Destroyed 8 combat bots 26151 | -4/Factory | Garrison activated, responded to threat 26231 | -4/Factory | Released all parts (12) 26259 | -4/Factory | Lost 3 parts (1p2u) 26260 | -4/Factory | Discovered new exit (range 12) 26267 | -4/Factory | Entered Research 26267 | -3/Research | Evolved 2 slots: Propulsion x2 26307 | -3/Research | Found Prototype Device 26479 | -3/Research | Revision forces began assault on 0b10 26488 | -3/Research | Met up with Revision 17++ 26530 | -3/Research | Identified Exp. Thermal Shield 26655 | -3/Research | Spotted B-86 Titan 26979 | -3/Research | Research terminal network offline 27224 | -3/Research | Discovered new exit (range 7) 27233 | -3/Research | Identified exit to Testing 27365 | -3/Research | Spotted Striker 27402 | -3/Research | Fabricated Imp. Cryofiber Web (x2) 27543 | -3/Research | Spotted Striker 27567 | -3/Research | Destroyed Striker 27851 | -3/Research | Central database locked down 27941 | -3/Research | Spotted Striker 27955 | -3/Research | Destroyed Striker 27995 | -3/Research | Spotted Striker 28014 | -3/Research | Discovered new exit (range 15) 28064 | -3/Research | Entered another Research area 28064 | -2/Research | Evolved 2 slots: Power x1, Utility x1 28249 | -2/Research | Watched by a mysterious "MATRIX" hacker. 28336 | -2/Research | Build established: Scavenger-Tank 28568 | -2/Research | Found Fusion Bomb Launcher 28987 | -2/Research | Build established: Tank 29407 | -2/Research | System corruption reached 10% 29424 | -2/Research | Build established: Scavenger-Tank 29498 | -2/Research | Spotted B-90 Cyclops 29564 | -2/Research | First assault squad dispatched 29570 | -2/Research | Destroyed B-90 Cyclops 29614 | -2/Research | Discovered new exit (range 9) 29632 | -2/Research | Identified exit to Quarantine 29634 | -2/Research | Entered Quarantine 29634 | -2/Quarantine | Released all parts (18) 29635 | -2/Quarantine | Maximum security lockdown engaged 29715 | -2/Quarantine | Found Alien Slashing Weapon 29755 | -2/Quarantine | Core integrity fell below 50% 29765 | -2/Quarantine | Core integrity fell below 20% 29767 | -2/Quarantine | Destroyed by G-73 Enforcer with Heavy Laser Last Messages --------------- 29754_ Nova Cannon+ destroyed. 29754_ Acquired 13 matter. 29756_ Slammed into S-43 Plague. 29757_ E-15 Imp destroyed. 29758_ Acquired Xenon Bombardment Thruster. 29759_ Acquired Cesium-ion Thruster. 29761_ Cesium-ion Thruster destroyed. 29762_ M-36 Artificer repairs S-43 Plague. 29762_ C-45 Heavy ARC bursts open, deploying its payload. 29762_ G-73 Enforcer unfolds itself. 29762_ B-74 Champion unfolds itself. 29762_ G-73 Enforcer unfolds itself. 29762_ I-47 Archangel unfolds itself. 29763_ Xenon Bombardment Thruster destroyed. 29765_ Slammed into G-73 Enforcer. 29765_ C-45 Heavy ARC bursts open, deploying its payload. 29765_ G-73 Enforcer unfolds itself. 29765_ L-61 Swordsman unfolds itself. 29765_ G-73 Enforcer unfolds itself. 29766_ Slammed into G-73 Enforcer. Map ----- +----------------------------------------------------+ | | | ?????????????????????????????????????????????????? | | ?????????????????????????????????????????????????? | | ?????????????????????????????????????????????????? | | ?????????????????????????????????????????????????? | | ?????????????????????????????????????????????????? | | ?????????????????????????????????????????????????? | | ?????????????????????????????????????????????????? | | ?????????????????????????????????????????????????? | | ?????????????????????????????????????????????????? | | ?????????????????????????????????????????????????? | | ?????????????????????????????????????????????????? | | ???????????????###########???????????????????????? | | ???????????????# #???????????????????????? | | ???????????????# #???????????????????????? | | ???????????????# """"" #?????????Y?????????????? | | ???????????????# """"" #??????????Y????????????? | | ???????????????# "/"/!#???????Y?? ???????????? | | ???????????????# """% ##???????Y ????????????? | | ???????????????# g %%=="#????gg #?????????????? | | ???????????????# ss ##????g A #?????????????? | | ???????????????#####l##########e #?????????????? | | ????????????????# m g ggggli%lgg +?????????????? | | ????????????????# mbggbggbgggl #?????????????? | | ????????????????# m gglggg%g #?????????????? | | ????????????????# % ss@g +?????????????? | | ????????????????# ######+#######??????????????? | | ????????????????# #?????? ???????????????????? | | ????????????????# #??????? ??????????????????? | | ????????????????# #?????????#?????????????????? | | ????????????????# #???????????????????????????? | | ????????????????# #???????????????????????????? | | ????????????????# #???????????????????????????? | | ????????????????# #???????????????????????????? | | ????????????????# #???????????????????????????? | | ????????????????# #???????????????????????????? | | ????????????????# #?????????????#######???????? | | ????????????????# #?????????????#"""""#???????? | | ????????????????# #??????????????"""""????????? | | ????????????????# Y#??????????????""!""????????? | | ????????????????# #??????????????? ?????????? | | ????????????????# #??????????????? ?????????? | | ????????????????# #################+#####?????? | | ????????????????# ^ #?????? | | ????????????????# !! ####??? | | ????????????????# ! " +??? | | ????????????????# """" """" """" G" ####??? | | ????????????????# """" """" """" "" #?????? | | ????????????????# """" """" """" #?????? | | ????????????????# """" """" """" ####### | +----------------------------------------------------+ Best States ------------- Heat Dissipation 163 Energy Generation 61 Energy Capacity 670 Matter Stores 300 Matter Capacity 300 Sight Range 16 Robot Scan Range 16 Terrain Scan Range 20 Terrain Scan Density 10 Jamming Range 12 Base Temperature (-) 150 Armor Coverage 1200 Weapon Cycling 25 Evasion (%) 65 Targeting Accuracy 20 Target Analysis 8 Core Analysis 9 Recoil Reduction 6 Energy Filtering 75 Offensive Hacking 14 Item Schematics ----------------- Energy Filter | -7/Zion | Archive Thermic Laser | -7/Zion | Archive Powered Hammer | -7/Zion | Archive Matter Compressor | -7/Zion | Archive Imp. Cooling System | -7/Zion | Archive Imp. Medium Treads | -7/Zion | Archive Transmission Jammer | -7/Zion | Archive Mass Driver | -7/Zion | Archive Imp. Arc Projector | -7/Zion | Archive Matter Filter | -7/Zion | Archive Proton Cannon | -7/Zion | Archive Coil Gun | -7/Zion | Archive Weapon Cycler | -7/Zion | Archive Imp. Cryofiber Web | -7/Zion | Archive Imp. KE Penetrator | -7/Zion | Archive Robot Schematics ------------------ O-24 Administrator | -7/Zion | Archive B-48 Gladiator | -7/Zion | Archive K-01 Serf | -7/Zion | Archive Fabricated ------------ Adv. Weapon Cycler | x2 | -6/Factory | Preloaded Energy Filter | x2 | -5/Factory Imp. Cryofiber Web | x2 | -3/Research Repaired ---------- Med. Armor Plating | 31% | -8/Materials Studied --------- Lgt. Treads | -8/Materials | Hacked Rocket Launcher | -8/Materials | Hacked Lgt. Nuclear Core | -8/Materials | Hacked Hvy. Particle Cannon | -6/Factory | Hacked Med. Treads | -6/Factory | Hacked Adv. Treads | -6/Factory | Hacked Hvy. Treads | -6/Factory | Hacked Nova Cannon | -3/Research | Hacked Alien Tech Used ----------------- None Achievements -------------- None Challenges ------------ None Game ------ Seed InsulatedWaveWheel Manual? 0 Play Time 03:05:16 Cumulative 355.8 hours Start 2026.03.25 @ 13:43:49 End 2026.03.26 @ 03:24:24 Sessions 3 Manual Loads 0 Difficulty Rogue Special Mode None Game No. 278 Rogue 278 Adventurer 0 Explorer 0 Win Type - Total 20 Types 11/0/7/2/0/0/0/0/0/0 Lore% 87 Gallery% 76 Achievement% 66 Wizard Run 0 Options --------- Layout 1 ASCII 0 Keyboard 0 Movement Numpad Keybinds 0 Fullscreen 1 Font 32/SmallcapsGlow Map View 77x35 Zoom Use 0% Tactical HUD 1 Map Filters NONE Filters NONE Steam 1 RUN: 34bfbf0e-8730-45e7-b706-0e5b1fdcb969